[Event "Titled Tuesday Blitz April 05 Late 2022"]
[White "Keymer, Vincent"]
[Black "Abdyzhapar, Asylbek"]
[WhiteFideId "12940690"]
[BlackFideId "13800337"]
[WhiteElo "2557"]
[BlackElo "2331"]
[Result "1/2-1/2"]
[Round "06"]
[TimeControl "180+1"]
[Date "2022.04.05"]
[WhiteClock "0:00:15"]
[BlackClock "0:00:18"]

1. Nf3 {[%clk 0:03:00]}  Nf6 {[%clk 0:02:59]} 2. c4 {[%clk 0:03:01]}  g6 {[%clk 0:02:59]} 3. Nc3 {[%clk 0:03:01]}  Bg7 {[%clk 0:02:59]} 4. g3 {[%clk 0:03:01]}  O-O {[%clk 0:02:58]} 5. Bg2 {[%clk 0:03:02]}  d6 {[%clk 0:02:59]} 6. d4 {[%clk 0:03:02]}  Nc6 {[%clk 0:02:58]} 7. O-O {[%clk 0:03:02]}  a6 {[%clk 0:02:58]} 8. b3 {[%clk 0:03:02]}  Rb8 {[%clk 0:02:58]} 9. d5 {[%clk 0:03:03]}  Na7 {[%clk 0:02:55]} 10. Bg5 {[%clk 0:02:44]}  c5 {[%clk 0:02:53]} 11. a4 {[%clk 0:02:43]}  Qc7 {[%clk 0:02:50]} 12. a5 {[%clk 0:02:38]}  b5 {[%clk 0:02:49]} 13. axb6 {[%clk 0:02:39]}  Rxb6 {[%clk 0:02:49]} 14. Ra3 {[%clk 0:02:38]}  Bd7 {[%clk 0:02:43]} 15. h3 {[%clk 0:02:36]}  Rfb8 {[%clk 0:02:42]} 16. Qc2 {[%clk 0:02:24]}  Qc8 {[%clk 0:02:22]} 17. Kh2 {[%clk 0:02:22]}  h6 {[%clk 0:01:59]} 18. Bf4 {[%clk 0:02:19]}  g5 {[%clk 0:01:58]} 19. Bd2 {[%clk 0:02:19]}  g4 {[%clk 0:01:55]} 20. hxg4 {[%clk 0:02:14]}  Nxg4+ {[%clk 0:01:54]} 21. Kg1 {[%clk 0:02:14]}  Bf5 {[%clk 0:01:54]} 22. e4 {[%clk 0:02:11]}  Bd7 {[%clk 0:01:47]} 23. Nh4 {[%clk 0:02:06]}  Qb7 {[%clk 0:01:45]} 24. Rb1 {[%clk 0:02:04]}  Ne5 {[%clk 0:01:43]} 25. Nf5 {[%clk 0:01:26]}  Bxf5 {[%clk 0:01:41]} 26. exf5 {[%clk 0:01:27]}  Nxc4 {[%clk 0:01:41]} 27. bxc4 {[%clk 0:01:28]}  Rxb1+ {[%clk 0:01:40]} 28. Nxb1 {[%clk 0:01:28]}  Qxb1+ {[%clk 0:01:40]} 29. Qxb1 {[%clk 0:01:29]}  Rxb1+ {[%clk 0:01:40]} 30. Kh2 {[%clk 0:01:29]}  Nc8 {[%clk 0:01:19]} 31. Be4 {[%clk 0:00:52]}  Rb2 {[%clk 0:01:16]} 32. Be3 {[%clk 0:00:52]}  Nb6 {[%clk 0:01:13]} 33. Bd3 {[%clk 0:00:52]}  Bd4 {[%clk 0:01:06]} 34. Bxh6 {[%clk 0:00:33]}  Rxf2+ {[%clk 0:01:01]} 35. Kh3 {[%clk 0:00:33]}  Nd7 {[%clk 0:00:44]} 36. Rxa6 {[%clk 0:00:33]}  f6 {[%clk 0:00:43]} 37. Ra8+ {[%clk 0:00:21]}  Kh7 {[%clk 0:00:38]} 38. Bf4 {[%clk 0:00:20]}  Ne5 {[%clk 0:00:37]} 39. Be4 {[%clk 0:00:20]}  Re2 {[%clk 0:00:28]} 40. Bg2 {[%clk 0:00:18]}  Nxc4 {[%clk 0:00:15]} 41. Bf1 {[%clk 0:00:17]}  Rc2 {[%clk 0:00:14]} 42. Ra7 {[%clk 0:00:18]}  Be5 {[%clk 0:00:09]} 43. Rxe7+ {[%clk 0:00:17]}  Kg8 {[%clk 0:00:09]} 44. Bh6 {[%clk 0:00:15]}  Rc3 {[%clk 0:00:07]} 45. Kg4 {[%clk 0:00:10]}  Rxg3+ {[%clk 0:00:06]} 46. Kh5 {[%clk 0:00:11]}  Ne3 {[%clk 0:00:05]} 47. Bxe3 {[%clk 0:00:05]}  Rxe3 {[%clk 0:00:04]} 48. Bb5 {[%clk 0:00:05]}  Rg3 {[%clk 0:00:04]} 49. Bd7 {[%clk 0:00:02]}  Rg5+ {[%clk 0:00:03]} 50. Kh4 {[%clk 0:00:02]}  Kf8 {[%clk 0:00:04]} 51. Rh7 {[%clk 0:00:02]}  Bg3+ {[%clk 0:00:05]} 52. Kh3 {[%clk 0:00:01]}  Be5 {[%clk 0:00:06]} 53. Be6 {[%clk 0:00:02]}  Rg3+ {[%clk 0:00:05]} 54. Kh4 {[%clk 0:00:02]}  Rg1 {[%clk 0:00:05]} 55. Rf7+ {[%clk 0:00:02]}  Ke8 {[%clk 0:00:05]} 56. Rc7 {[%clk 0:00:03]}  Rc1 {[%clk 0:00:03]} 57. Kh5 {[%clk 0:00:03]}  Rg1 {[%clk 0:00:02]} 58. Kh4 {[%clk 0:00:03]}  Kd8 {[%clk 0:00:02]} 59. Rc8+ {[%clk 0:00:03]}  Ke7 {[%clk 0:00:02]} 60. Rc6 {[%clk 0:00:04]}  Bd4 {[%clk 0:00:02]} 61. Kh3 {[%clk 0:00:04]}  Be5 {[%clk 0:00:02]} 62. Rc7+ {[%clk 0:00:03]}  Kf8 {[%clk 0:00:02]} 63. Kh4 {[%clk 0:00:03]}  Ke8 {[%clk 0:00:02]} 64. Kh5 {[%clk 0:00:04]}  Kd8 {[%clk 0:00:02]} 65. Rc8+ {[%clk 0:00:03]}  Ke7 {[%clk 0:00:03]} 66. Rc6 {[%clk 0:00:04]}  Bd4 {[%clk 0:00:02]} 67. Kh6 {[%clk 0:00:05]}  Rg5 {[%clk 0:00:01]} 68. Rc7+ {[%clk 0:00:05]}  Kd8 {[%clk 0:00:02]} 69. Rc8+ {[%clk 0:00:05]}  Ke7 {[%clk 0:00:02]} 70. Kh7 {[%clk 0:00:06]}  Be5 {[%clk 0:00:01]} 71. Rc7+ {[%clk 0:00:06]}  Kd8 {[%clk 0:00:01]} 72. Rc6 {[%clk 0:00:07]}  Ke8 {[%clk 0:00:02]} 73. Rc7 {[%clk 0:00:07]}  Kd8 {[%clk 0:00:02]} 74. Rd7+ {[%clk 0:00:07]}  Ke8 {[%clk 0:00:02]} 75. Rb7 {[%clk 0:00:08]}  Rg3 {[%clk 0:00:03]} 76. Rc7 {[%clk 0:00:08]}  Kd8 {[%clk 0:00:04]} 77. Rc6 {[%clk 0:00:08]}  Ke7 {[%clk 0:00:04]} 78. Kh6 {[%clk 0:00:08]}  Ke8 {[%clk 0:00:05]} 79. Kh5 {[%clk 0:00:09]}  Kd8 {[%clk 0:00:05]} 80. Rc8+ {[%clk 0:00:09]}  Ke7 {[%clk 0:00:05]} 81. Kh4 {[%clk 0:00:10]}  Rg5 {[%clk 0:00:06]} 82. Kh3 {[%clk 0:00:10]}  c4 {[%clk 0:00:06]} 83. Rxc4 {[%clk 0:00:09]}  Rg3+ {[%clk 0:00:06]} 84. Kh4 {[%clk 0:00:10]}  Rg5 {[%clk 0:00:07]} 85. Rc7+ {[%clk 0:00:10]}  Kd8 {[%clk 0:00:07]} 86. Rb7 {[%clk 0:00:11]}  Ke8 {[%clk 0:00:08]} 87. Rb8+ {[%clk 0:00:11]}  Ke7 {[%clk 0:00:08]} 88. Ra8 {[%clk 0:00:12]}  Rg1 {[%clk 0:00:07]} 89. Kh5 {[%clk 0:00:12]}  Rg5+ {[%clk 0:00:06]} 90. Kh6 {[%clk 0:00:12]}  Bf4 {[%clk 0:00:07]} 91. Kh7 {[%clk 0:00:13]}  Rg3 {[%clk 0:00:07]} 92. Ra4 {[%clk 0:00:12]}  Be5 {[%clk 0:00:07]} 93. Kh6 {[%clk 0:00:12]}  Rg5 {[%clk 0:00:07]} 94. Rc4 {[%clk 0:00:11]}  Ke8 {[%clk 0:00:07]} 95. Rc7 {[%clk 0:00:08]}  Kd8 {[%clk 0:00:07]} 96. Rb7 {[%clk 0:00:08]}  Ke8 {[%clk 0:00:07]} 97. Kh7 {[%clk 0:00:08]}  Kd8 {[%clk 0:00:08]} 98. Ra7 {[%clk 0:00:07]}  Ke8 {[%clk 0:00:08]} 99. Bf7+ {[%clk 0:00:08]}  Kd8 {[%clk 0:00:08]} 100. Bg6 {[%clk 0:00:09]}  Rg4 {[%clk 0:00:08]} 101. Kg7 {[%clk 0:00:09]}  Rd4 {[%clk 0:00:08]} 102. Bf7 {[%clk 0:00:10]}  Rf4 {[%clk 0:00:08]} 103. Be6 {[%clk 0:00:10]}  Rh4 {[%clk 0:00:08]} 104. Rd7+ {[%clk 0:00:09]}  Ke8 {[%clk 0:00:08]} 105. Rb7 {[%clk 0:00:08]}  Kd8 {[%clk 0:00:09]} 106. Kf8 {[%clk 0:00:07]}  Rh8+ {[%clk 0:00:08]} 107. Bg8 {[%clk 0:00:07]}  Rh5 {[%clk 0:00:09]} 108. Ra7 {[%clk 0:00:04]}  Kc8 {[%clk 0:00:09]} 109. Be6+ {[%clk 0:00:04]}  Kb8 {[%clk 0:00:09]} 110. Rd7 {[%clk 0:00:04]}  Rh8+ {[%clk 0:00:09]} 111. Kg7 {[%clk 0:00:04]}  Rh4 {[%clk 0:00:09]} 112. Rf7 {[%clk 0:00:05]}  Ka8 {[%clk 0:00:08]} 113. Kf8 {[%clk 0:00:05]}  Kb8 {[%clk 0:00:08]} 114. Ke7 {[%clk 0:00:06]}  Rb4 {[%clk 0:00:09]} 115. Rf8+ {[%clk 0:00:05]}  Kc7 {[%clk 0:00:09]} 116. Rc8+ {[%clk 0:00:04]}  Kb6 {[%clk 0:00:09]} 117. Rd8 {[%clk 0:00:05]}  Kc5 {[%clk 0:00:09]} 118. Rc8+ {[%clk 0:00:05]}  Kd4 {[%clk 0:00:09]} 119. Rc7 {[%clk 0:00:06]}  Rb6 {[%clk 0:00:09]} 120. Rd7 {[%clk 0:00:06]}  Ke4 {[%clk 0:00:10]} 121. Kf7 {[%clk 0:00:06]}  Ra6 {[%clk 0:00:10]} 122. Kg6 {[%clk 0:00:06]}  Ra2 {[%clk 0:00:10]} 123. Rb7 {[%clk 0:00:06]}  Rg2+ {[%clk 0:00:10]} 124. Kf7 {[%clk 0:00:06]}  Rc2 {[%clk 0:00:10]} 125. Rb4+ {[%clk 0:00:06]}  Ke3 {[%clk 0:00:11]} 126. Rb7 {[%clk 0:00:05]}  Rc5 {[%clk 0:00:11]} 127. Rd7 {[%clk 0:00:05]}  Kf4 {[%clk 0:00:11]} 128. Ke7 {[%clk 0:00:05]}  Ke4 {[%clk 0:00:11]} 129. Rxd6 {[%clk 0:00:05]}  Bxd6+ {[%clk 0:00:10]} 130. Kxd6 {[%clk 0:00:06]}  Rxd5+ {[%clk 0:00:09]} 131. Bxd5+ {[%clk 0:00:05]}  Kxf5 {[%clk 0:00:10]} 132. Kc5 {[%clk 0:00:06]}  Ke5 {[%clk 0:00:10]} 133. Kc4 {[%clk 0:00:07]}  f5 {[%clk 0:00:11]} 134. Ba8 {[%clk 0:00:08]}  f4 {[%clk 0:00:12]} 135. Kd3 {[%clk 0:00:08]}  Kf5 {[%clk 0:00:13]} 136. Bf3 {[%clk 0:00:09]}  Kg5 {[%clk 0:00:13]} 137. Ke2 {[%clk 0:00:09]}  Kh4 {[%clk 0:00:13]} 138. Be4 {[%clk 0:00:10]}  Kg5 {[%clk 0:00:14]} 139. Bf3 {[%clk 0:00:11]}  Kh4 {[%clk 0:00:15]} 140. Kf2 {[%clk 0:00:12]}  Kg5 {[%clk 0:00:15]} 141. Kg2 {[%clk 0:00:12]}  Kf5 {[%clk 0:00:16]} 142. Kh3 {[%clk 0:00:13]}  Ke5 {[%clk 0:00:17]} 143. Kg4 {[%clk 0:00:14]}  Kd4 {[%clk 0:00:18]} 144. Kxf4 {[%clk 0:00:15]} 1/2-1/2


[Site "https://www.chess.com"]

[Event "Titled Tuesday Blitz April 05 Late 2022"]
[White "Kobalia, Mikhail"]
[Black "Paravyan, David"]
[WhiteFideId "4119150"]
[BlackFideId "4194985"]
[WhiteElo "2667"]
[BlackElo "2569"]
[Result "1/2-1/2"]
[Round "06"]
[TimeControl "180+1"]
[Date "2022.04.05"]
[WhiteClock "0:00:05"]
[BlackClock "0:00:19"]

1. e4 {[%clk 0:02:56]}  e5 {[%clk 0:02:48]} 2. Nf3 {[%clk 0:02:56]}  Nf6 {[%clk 0:02:48]} 3. Nxe5 {[%clk 0:02:48]}  d6 {[%clk 0:02:48]} 4. Nf3 {[%clk 0:02:48]}  Nxe4 {[%clk 0:02:48]} 5. d4 {[%clk 0:02:49]}  d5 {[%clk 0:02:48]} 6. Bd3 {[%clk 0:02:49]}  Bd6 {[%clk 0:02:48]} 7. O-O {[%clk 0:02:49]}  O-O {[%clk 0:02:49]} 8. c4 {[%clk 0:02:49]}  c6 {[%clk 0:02:49]} 9. Nc3 {[%clk 0:02:48]}  Nxc3 {[%clk 0:02:49]} 10. bxc3 {[%clk 0:02:49]}  dxc4 {[%clk 0:02:50]} 11. Bxc4 {[%clk 0:02:49]}  Bg4 {[%clk 0:02:51]} 12. h3 {[%clk 0:02:42]}  Bh5 {[%clk 0:02:46]} 13. Re1 {[%clk 0:02:30]}  Nd7 {[%clk 0:02:46]} 14. Rb1 {[%clk 0:02:29]}  b5 {[%clk 0:02:45]} 15. Be2 {[%clk 0:02:27]}  Bg6 {[%clk 0:02:42]} 16. Ra1 {[%clk 0:02:26]}  Re8 {[%clk 0:02:39]} 17. Bg5 {[%clk 0:02:24]}  Qc7 {[%clk 0:02:38]} 18. Nh4 {[%clk 0:02:24]}  Be4 {[%clk 0:02:32]} 19. a4 {[%clk 0:02:18]}  b4 {[%clk 0:02:22]} 20. cxb4 {[%clk 0:01:49]}  Bxb4 {[%clk 0:02:23]} 21. Bd2 {[%clk 0:01:49]}  a5 {[%clk 0:02:08]} 22. Bc4 {[%clk 0:01:48]}  Nb6 {[%clk 0:02:01]} 23. Bb3 {[%clk 0:01:44]}  Nd5 {[%clk 0:01:14]} 24. Bxb4 {[%clk 0:01:40]}  Nxb4 {[%clk 0:01:14]} 25. Qg4 {[%clk 0:01:38]}  Nc2 {[%clk 0:00:42]} 26. Bxc2 {[%clk 0:01:18]}  Bxc2 {[%clk 0:00:43]} 27. Nf5 {[%clk 0:01:18]}  Bxf5 {[%clk 0:00:39]} 28. Qxf5 {[%clk 0:01:17]}  g6 {[%clk 0:00:36]} 29. Qc5 {[%clk 0:01:17]}  Rad8 {[%clk 0:00:31]} 30. Rac1 {[%clk 0:01:12]}  Rxe1+ {[%clk 0:00:25]} 31. Rxe1 {[%clk 0:01:13]}  Kg7 {[%clk 0:00:19]} 32. Re7 {[%clk 0:01:10]}  Qd6 {[%clk 0:00:18]} 33. Qe5+ {[%clk 0:00:47]}  Qxe5 {[%clk 0:00:17]} 34. dxe5 {[%clk 0:00:44]}  Kf8 {[%clk 0:00:17]} 35. Rc7 {[%clk 0:00:44]}  Rd1+ {[%clk 0:00:16]} 36. Kh2 {[%clk 0:00:44]}  Rc1 {[%clk 0:00:16]} 37. Ra7 {[%clk 0:00:40]}  Rc5 {[%clk 0:00:14]} 38. e6 {[%clk 0:00:37]}  fxe6 {[%clk 0:00:14]} 39. Rxh7 {[%clk 0:00:37]}  Rc4 {[%clk 0:00:14]} 40. Rc7 {[%clk 0:00:37]}  Rxa4 {[%clk 0:00:12]} 41. Rxc6 {[%clk 0:00:37]}  Kf7 {[%clk 0:00:12]} 42. Kg3 {[%clk 0:00:36]}  g5 {[%clk 0:00:11]} 43. Ra6 {[%clk 0:00:29]}  Kf6 {[%clk 0:00:11]} 44. Kf3 {[%clk 0:00:29]}  Kf5 {[%clk 0:00:11]} 45. g4+ {[%clk 0:00:26]}  Ke5 {[%clk 0:00:11]} 46. Kg3 {[%clk 0:00:26]}  Ra1 {[%clk 0:00:11]} 47. Ra8 {[%clk 0:00:20]}  a4 {[%clk 0:00:10]} 48. Ra5+ {[%clk 0:00:19]}  Kf6 {[%clk 0:00:10]} 49. Kg2 {[%clk 0:00:12]}  a3 {[%clk 0:00:08]} 50. Kh2 {[%clk 0:00:12]}  e5 {[%clk 0:00:08]} 51. Kg2 {[%clk 0:00:12]}  Ke6 {[%clk 0:00:09]} 52. Kh2 {[%clk 0:00:11]}  Kd6 {[%clk 0:00:09]} 53. Ra6+ {[%clk 0:00:09]}  Kd5 {[%clk 0:00:09]} 54. Kg3 {[%clk 0:00:09]}  Ke4 {[%clk 0:00:08]} 55. Ra4+ {[%clk 0:00:08]}  Kd3 {[%clk 0:00:09]} 56. Ra5 {[%clk 0:00:08]}  Kc4 {[%clk 0:00:04]} 57. Kg2 {[%clk 0:00:06]}  Kb4 {[%clk 0:00:05]} 58. Rxe5 {[%clk 0:00:05]}  a2 {[%clk 0:00:04]} 59. Re2 {[%clk 0:00:05]}  Kb3 {[%clk 0:00:04]} 60. Re3+ {[%clk 0:00:05]}  Kb4 {[%clk 0:00:05]} 61. Re2 {[%clk 0:00:05]}  Rg1+ {[%clk 0:00:04]} 62. Kxg1 {[%clk 0:00:05]}  a1=Q+ {[%clk 0:00:05]} 63. Kg2 {[%clk 0:00:05]}  Qa8+ {[%clk 0:00:05]} 64. Kg1 {[%clk 0:00:04]}  Qa1+ {[%clk 0:00:05]} 65. Kg2 {[%clk 0:00:04]}  Qa8+ {[%clk 0:00:06]} 66. Kg1 {[%clk 0:00:04]}  Kc3 {[%clk 0:00:06]} 67. Re3+ {[%clk 0:00:05]}  Kd2 {[%clk 0:00:07]} 68. Rg3 {[%clk 0:00:02]}  Qc6 {[%clk 0:00:07]} 69. Re3 {[%clk 0:00:02]}  Qf6 {[%clk 0:00:07]} 70. Rg3 {[%clk 0:00:03]}  Qa1+ {[%clk 0:00:07]} 71. Kg2 {[%clk 0:00:02]}  Qa8+ {[%clk 0:00:08]} 72. Kg1 {[%clk 0:00:03]}  Qe4 {[%clk 0:00:08]} 73. Re3 {[%clk 0:00:03]}  Qd5 {[%clk 0:00:08]} 74. Rg3 {[%clk 0:00:03]}  Qc5 {[%clk 0:00:08]} 75. Re3 {[%clk 0:00:03]}  Qf8 {[%clk 0:00:08]} 76. Rg3 {[%clk 0:00:03]}  Qh8 {[%clk 0:00:08]} 77. Re3 {[%clk 0:00:03]}  Qb2 {[%clk 0:00:08]} 78. Rg3 {[%clk 0:00:03]}  Qb7 {[%clk 0:00:08]} 79. Re3 {[%clk 0:00:03]}  Kd1 {[%clk 0:00:09]} 80. Rg3 {[%clk 0:00:03]}  Ke2 {[%clk 0:00:09]} 81. Re3+ {[%clk 0:00:03]}  Kd2 {[%clk 0:00:10]} 82. Rg3 {[%clk 0:00:03]}  Qe4 {[%clk 0:00:10]} 83. Re3 {[%clk 0:00:03]}  Qf4 {[%clk 0:00:11]} 84. Rg3 {[%clk 0:00:03]}  Kd1 {[%clk 0:00:11]} 85. Re3 {[%clk 0:00:04]}  Kc2 {[%clk 0:00:12]} 86. Rg3 {[%clk 0:00:04]}  Kd2 {[%clk 0:00:13]} 87. Re3 {[%clk 0:00:04]}  Kd1 {[%clk 0:00:13]} 88. Rg3 {[%clk 0:00:04]}  Kc2 {[%clk 0:00:14]} 89. Re3 {[%clk 0:00:04]}  Kd1 {[%clk 0:00:15]} 90. Rg3 {[%clk 0:00:05]}  Ke2 {[%clk 0:00:15]} 91. Re3+ {[%clk 0:00:05]}  Kd2 {[%clk 0:00:16]} 92. Rg3 {[%clk 0:00:05]}  Qa4 {[%clk 0:00:16]} 93. Re3 {[%clk 0:00:05]}  Qa6 {[%clk 0:00:16]} 94. Rg3 {[%clk 0:00:05]}  Kd1 {[%clk 0:00:17]} 95. Re3 {[%clk 0:00:05]}  Kd2 {[%clk 0:00:18]} 96. Rg3 {[%clk 0:00:05]}  Ke1 {[%clk 0:00:18]} 97. Re3+ {[%clk 0:00:05]}  Kd2 {[%clk 0:00:19]} 1/2-1/2


[Site "https://www.chess.com"]

[Event "Titled Tuesday Blitz April 05 Late 2022"]
[White "Kollars, Dmitrij"]
[Black "Shimanov, Aleksandr"]
[WhiteFideId "12909572"]
[BlackFideId "4198603"]
[WhiteElo "2584"]
[BlackElo "2636"]
[Result "1-0"]
[Round "06"]
[TimeControl "180+1"]
[Date "2022.04.05"]
[WhiteClock "0:00:06"]
[BlackClock "0:00:02"]

1. Nf3 {[%clk 0:03:00]}  d5 {[%clk 0:02:57]} 2. e3 {[%clk 0:03:01]}  Nf6 {[%clk 0:02:50]} 3. c4 {[%clk 0:03:00]}  e6 {[%clk 0:02:51]} 4. Nc3 {[%clk 0:03:00]}  Bd6 {[%clk 0:02:45]} 5. b3 {[%clk 0:02:58]}  a6 {[%clk 0:02:40]} 6. Bb2 {[%clk 0:02:55]}  b6 {[%clk 0:02:40]} 7. cxd5 {[%clk 0:02:54]}  exd5 {[%clk 0:02:40]} 8. g3 {[%clk 0:02:54]}  Bb7 {[%clk 0:02:39]} 9. Bg2 {[%clk 0:02:53]}  Nbd7 {[%clk 0:02:39]} 10. O-O {[%clk 0:02:53]}  Qe7 {[%clk 0:02:39]} 11. Qc2 {[%clk 0:02:51]}  h5 {[%clk 0:02:29]} 12. Ne2 {[%clk 0:02:44]}  g6 {[%clk 0:02:02]} 13. h4 {[%clk 0:02:33]}  Rg8 {[%clk 0:01:58]} 14. Nf4 {[%clk 0:02:27]}  O-O-O {[%clk 0:01:53]} 15. Rfc1 {[%clk 0:02:23]}  Kb8 {[%clk 0:01:52]} 16. a3 {[%clk 0:02:11]}  Ne4 {[%clk 0:01:34]} 17. b4 {[%clk 0:02:04]}  g5 {[%clk 0:01:22]} 18. Nxg5 {[%clk 0:02:04]}  Nxg5 {[%clk 0:01:22]} 19. hxg5 {[%clk 0:02:05]}  Qxg5 {[%clk 0:01:20]} 20. Qh7 {[%clk 0:01:41]}  h4 {[%clk 0:01:09]} 21. Nh3 {[%clk 0:01:03]}  Qe7 {[%clk 0:01:00]} 22. Qxh4 {[%clk 0:00:55]}  Qxh4 {[%clk 0:00:52]} 23. gxh4 {[%clk 0:00:56]}  d4 {[%clk 0:00:52]} 24. Ng5 {[%clk 0:00:57]}  Bxg2 {[%clk 0:00:46]} 25. Kxg2 {[%clk 0:00:58]}  f6 {[%clk 0:00:43]} 26. f4 {[%clk 0:00:58]}  fxg5 {[%clk 0:00:42]} 27. hxg5 {[%clk 0:00:59]}  c5 {[%clk 0:00:31]} 28. bxc5 {[%clk 0:00:57]}  bxc5 {[%clk 0:00:32]} 29. Kf3 {[%clk 0:00:56]}  Rdf8 {[%clk 0:00:32]} 30. Rg1 {[%clk 0:00:51]}  Kc7 {[%clk 0:00:30]} 31. Rac1 {[%clk 0:00:50]}  Kd8 {[%clk 0:00:29]} 32. Ke4 {[%clk 0:00:47]}  Ke7 {[%clk 0:00:25]} 33. Rcf1 {[%clk 0:00:46]}  Rb8 {[%clk 0:00:19]} 34. Ba1 {[%clk 0:00:45]}  Rb3 {[%clk 0:00:19]} 35. exd4 {[%clk 0:00:39]}  Rxa3 {[%clk 0:00:19]} 36. f5 {[%clk 0:00:37]}  cxd4 {[%clk 0:00:16]} 37. Bxd4 {[%clk 0:00:38]}  Bc5 {[%clk 0:00:14]} 38. Re1 {[%clk 0:00:29]}  Kd6 {[%clk 0:00:11]} 39. Be3 {[%clk 0:00:14]}  Ra4+ {[%clk 0:00:10]} 40. d4 {[%clk 0:00:12]}  Re8+ {[%clk 0:00:09]} 41. Kf3 {[%clk 0:00:12]}  Bxd4 {[%clk 0:00:09]} 42. Bf4+ {[%clk 0:00:11]}  Ne5+ {[%clk 0:00:07]} 43. Bxe5+ {[%clk 0:00:11]}  Rxe5 {[%clk 0:00:07]} 44. f6 {[%clk 0:00:08]}  Rf5+ {[%clk 0:00:05]} 45. Kg4 {[%clk 0:00:07]}  Rf2 {[%clk 0:00:06]} 46. Rd1 {[%clk 0:00:06]}  Ke5 {[%clk 0:00:06]} 47. Rge1+ {[%clk 0:00:06]}  Be3+ {[%clk 0:00:06]} 48. Kh5 {[%clk 0:00:06]}  Re4 {[%clk 0:00:06]} 49. Kg6 {[%clk 0:00:05]}  Rh2 {[%clk 0:00:06]} 50. f7 {[%clk 0:00:05]}  Rf2 {[%clk 0:00:06]} 51. Rf1 {[%clk 0:00:05]}  Ref4 {[%clk 0:00:06]} 52. Rxf2 {[%clk 0:00:05]}  Rxf2 {[%clk 0:00:07]} 53. Rd8 {[%clk 0:00:06]}  Bc5 {[%clk 0:00:07]} 54. Rc8 {[%clk 0:00:06]}  Kd4 {[%clk 0:00:07]} 55. Kg7 {[%clk 0:00:05]}  a5 {[%clk 0:00:07]} 56. g6 {[%clk 0:00:06]}  a4 {[%clk 0:00:08]} 57. Ra8 {[%clk 0:00:05]}  a3 {[%clk 0:00:07]} 58. Kg8 {[%clk 0:00:06]}  Kc4 {[%clk 0:00:07]} 59. g7 {[%clk 0:00:06]}  a2 {[%clk 0:00:06]} 60. Rxa2 {[%clk 0:00:05]}  Rxa2 {[%clk 0:00:04]} 61. f8=Q {[%clk 0:00:06]}  Ra7 {[%clk 0:00:03]} 62. Qf1+ {[%clk 0:00:04]}  Kc3 {[%clk 0:00:03]} 63. Qf3+ {[%clk 0:00:04]}  Kc4 {[%clk 0:00:03]} 64. Kh7 {[%clk 0:00:05]}  Bd4 {[%clk 0:00:03]} 65. Qf1+ {[%clk 0:00:05]}  Kc3 {[%clk 0:00:03]} 66. Qc1+ {[%clk 0:00:05]}  Kd3 {[%clk 0:00:03]} 67. Qd1+ {[%clk 0:00:06]}  Kc3 {[%clk 0:00:04]} 68. Qe1+ {[%clk 0:00:06]}  Kd3 {[%clk 0:00:04]} 69. Qf1+ {[%clk 0:00:06]}  Kc3 {[%clk 0:00:05]} 70. Qf3+ {[%clk 0:00:06]}  Kc4 {[%clk 0:00:05]} 71. Qe2+ {[%clk 0:00:07]}  Kc3 {[%clk 0:00:06]} 72. Kg6 {[%clk 0:00:06]}  Rxg7+ {[%clk 0:00:05]} 73. Kf5 {[%clk 0:00:07]}  Ra7 {[%clk 0:00:05]} 74. Ke6 {[%clk 0:00:07]}  Bc5 {[%clk 0:00:03]} 75. Kd5 {[%clk 0:00:06]}  Ra5 {[%clk 0:00:02]} 76. Qe1+ {[%clk 0:00:06]} 1-0


[Site "https://www.chess.com"]

[Event "Titled Tuesday Blitz April 05 Late 2022"]
[White "Korchmar, Vasiliy"]
[Black "Ozates, Tuna"]
[WhiteFideId "24131750"]
[BlackFideId "6354521"]
[WhiteElo "2370"]
[BlackElo "1887"]
[Result "1-0"]
[Round "06"]
[TimeControl "180+1"]
[Date "2022.04.05"]
[WhiteClock "0:00:58"]
[BlackClock "0:01:22"]

1. d4 {[%clk 0:03:00]}  Nf6 {[%clk 0:02:59]} 2. Bf4 {[%clk 0:03:01]}  g6 {[%clk 0:02:58]} 3. Nc3 {[%clk 0:03:01]}  Bg7 {[%clk 0:02:59]} 4. e4 {[%clk 0:03:01]}  d6 {[%clk 0:02:59]} 5. Qd2 {[%clk 0:03:01]}  c6 {[%clk 0:02:54]} 6. Bh6 {[%clk 0:03:01]}  Bxh6 {[%clk 0:02:49]} 7. Qxh6 {[%clk 0:03:01]}  Qa5 {[%clk 0:02:49]} 8. O-O-O {[%clk 0:03:00]}  b5 {[%clk 0:02:37]} 9. e5 {[%clk 0:02:59]}  dxe5 {[%clk 0:02:27]} 10. dxe5 {[%clk 0:03:00]}  Nh5 {[%clk 0:02:28]} 11. a3 {[%clk 0:02:23]}  Be6 {[%clk 0:02:02]} 12. Be2 {[%clk 0:02:20]}  Nd7 {[%clk 0:02:01]} 13. Bxh5 {[%clk 0:02:20]}  gxh5 {[%clk 0:02:02]} 14. Nf3 {[%clk 0:02:10]}  c5 {[%clk 0:01:52]} 15. Ng5 {[%clk 0:02:00]}  b4 {[%clk 0:01:39]} 16. Nxe6 {[%clk 0:01:41]}  bxc3 {[%clk 0:01:38]} 17. Ng7+ {[%clk 0:01:26]}  Kf8 {[%clk 0:01:31]} 18. Nxh5+ {[%clk 0:01:12]}  Ke8 {[%clk 0:01:28]} 19. Ng7+ {[%clk 0:01:12]}  Kf8 {[%clk 0:01:24]} 20. Rxd7 {[%clk 0:01:10]}  cxb2+ {[%clk 0:01:24]} 21. Kb1 {[%clk 0:01:10]}  Qxa3 {[%clk 0:01:23]} 22. Nf5+ {[%clk 0:00:58]}  Ke8 {[%clk 0:01:22]} 23. Rxe7+ {[%clk 0:00:58]} 1-0


[Site "https://www.chess.com"]

[Event "Titled Tuesday Blitz April 05 Late 2022"]
[White "Kostiukov, Alexandr"]
[Black "P., Komal Kishore"]
[WhiteFideId "14108100"]
[BlackFideId "5016703"]
[WhiteElo "2202"]
[BlackElo "2084"]
[Result "1-0"]
[Round "06"]
[TimeControl "180+1"]
[Date "2022.04.06"]
[WhiteClock "0:00:33"]
[BlackClock "0:00:39"]

1. g3 {[%clk 0:02:53]}  c6 {[%clk 0:03:00]} 2. Bg2 {[%clk 0:02:53]}  d5 {[%clk 0:03:01]} 3. d3 {[%clk 0:02:53]}  Nf6 {[%clk 0:03:02]} 4. e4 {[%clk 0:02:54]}  e5 {[%clk 0:03:00]} 5. Nc3 {[%clk 0:02:52]}  Be6 {[%clk 0:02:58]} 6. Nge2 {[%clk 0:02:44]}  Nbd7 {[%clk 0:02:57]} 7. O-O {[%clk 0:02:44]}  Bd6 {[%clk 0:02:56]} 8. f4 {[%clk 0:02:40]}  exf4 {[%clk 0:02:42]} 9. Nxf4 {[%clk 0:02:33]}  Bg4 {[%clk 0:02:40]} 10. Qe1 {[%clk 0:02:27]}  dxe4 {[%clk 0:02:34]} 11. Nxe4 {[%clk 0:02:21]}  Nxe4 {[%clk 0:02:32]} 12. Qxe4+ {[%clk 0:02:11]}  Qe7 {[%clk 0:02:30]} 13. Re1 {[%clk 0:02:07]}  Nf6 {[%clk 0:02:18]} 14. Qxe7+ {[%clk 0:01:52]}  Bxe7 {[%clk 0:02:16]} 15. Bd2 {[%clk 0:01:48]}  Kd7 {[%clk 0:01:53]} 16. d4 {[%clk 0:01:38]}  Rhe8 {[%clk 0:01:31]} 17. Nd3 {[%clk 0:01:38]}  Bd6 {[%clk 0:01:24]} 18. Ne5+ {[%clk 0:01:37]}  Bxe5 {[%clk 0:01:19]} 19. dxe5 {[%clk 0:01:38]}  Nd5 {[%clk 0:01:16]} 20. c4 {[%clk 0:01:36]}  Nc7 {[%clk 0:01:10]} 21. Bc3 {[%clk 0:01:27]}  Ne6 {[%clk 0:01:08]} 22. h3 {[%clk 0:01:27]}  Bh5 {[%clk 0:01:05]} 23. g4 {[%clk 0:01:24]}  Bg6 {[%clk 0:01:04]} 24. Rad1+ {[%clk 0:01:22]}  Kc7 {[%clk 0:01:04]} 25. Ba5+ {[%clk 0:01:14]}  b6 {[%clk 0:01:02]} 26. Bc3 {[%clk 0:01:10]}  Rad8 {[%clk 0:01:01]} 27. Kf2 {[%clk 0:00:58]}  Bc2 {[%clk 0:01:00]} 28. Rxd8 {[%clk 0:00:57]}  Rxd8 {[%clk 0:00:59]} 29. h4 {[%clk 0:00:44]}  Nf4 {[%clk 0:00:58]} 30. Bf1 {[%clk 0:00:44]}  Bd3 {[%clk 0:00:55]} 31. Ke3 {[%clk 0:00:41]}  Bxf1 {[%clk 0:00:53]} 32. Rxf1 {[%clk 0:00:38]}  Ng2+ {[%clk 0:00:44]} 33. Ke4 {[%clk 0:00:34]}  Nxh4 {[%clk 0:00:45]} 34. Rxf7+ {[%clk 0:00:34]}  Rd7 {[%clk 0:00:45]} 35. e6 {[%clk 0:00:33]}  Rxf7 {[%clk 0:00:42]} 36. exf7 {[%clk 0:00:34]}  Ng6 {[%clk 0:00:42]} 37. Bxg7 {[%clk 0:00:34]}  Kd6 {[%clk 0:00:39]} 38. f8=Q+ {[%clk 0:00:35]}  Nxf8 {[%clk 0:00:39]} 39. Bxf8+ {[%clk 0:00:35]}  Ke6 {[%clk 0:00:39]} 40. b4 {[%clk 0:00:33]} 1-0


[Site "https://www.chess.com"]